Workbook

Sheet Model Figure

Sheet Parameters
B1: Name | C1: Live | D1: Probabilistic | E1: Deterministic | F1: se | G1: Alpha | H1: Beta
B2: Age | C2: 1
A3: Transition probabilities | J3: Rate | K3: Yrly prob | L3: Lower | M3: Upper
A4: Well to Moderate Pneumonia | B4: tpA2B | C4: =D4 -> 0.2192354772 | D4: =BETAINV(RAND(),G4,H4) -> 0.2192354772 | E4: =K4 -> 0.2606619351 | F4: =(M4-L4)/(1.96*2) -> 0.06842573312 | G4: =E4^2*(1-E4)/F4^2-E4 -> 10.46834135 | H4: =G4*(1-E4)/E4 -> 29.69226494 | J4: 0.302 | K4: =1-EXP(-J4*1) -> 0.2606619351 | L4: =1-EXP(-0.16*1) -> 0.147856211 | M4: =1-EXP(-0.538*1) -> 0.4160850848
A6: Moderate Pneumonia to Severe Pneumonia | B6: tpB2C | C6: =D6 -> 0.04089366893 | D6: =BETAINV(RAND(),G6,H6) -> 0.04089366893 | E6: =K6 -> 0.04686621292 | F6: =(M6-L6)/(1.96*2) -> 0.02270672761 | G6: =E6^2*(1-E6)/F6^2-E6 -> 4.013493284 | H6: =G6*(1-E6)/E6 -> 81.62375013 | J6: 0.048 | K6: =1-EXP(-J6*1) -> 0.04686621292 | L6: =1-EXP(-0.018*1) -> 0.01783896764 | M6: =1-EXP(-0.113*1) -> 0.1068493399
A8: Remaining in Moderate Pneumonia | B8: tpB2B | C8: =D8 -> 0.0192332947 | D8: =BETAINV(RAND(),G8,H8) -> 0.0192332947 | E8: =K8 -> 0.02345957416 | F8: =(M8-L8)/(1.96*2) -> 0.00615831598 | G8: =E8^2*(1-E8)/F8^2-E8 -> 14.14773752 | H8: =G8*(1-E8)/E8 -> 588.9210746 | K8: =0.09*K4 -> 0.02345957416 | L8: =0.09*L4 -> 0.01330705899 | M8: =0.09*M4 -> 0.03744765764
A10: Remaining Severe Pneumonia | B10: tpC2C | C10: =D10 -> 0.002660606284 | D10: =BETAINV(RAND(),G10,H10) -> 0.002660606284 | E10: =K10 -> 0.002671374137 | F10: =(M10-L10)/(1.96*2) -> 0.001294283474 | G10: =E10^2*(1-E10)/F10^2-E10 -> 4.24595858 | H10: =G10*(1-E10)/E10 -> 1585.182688 | K10: =0.057*K6 -> 0.002671374137 | L10: =0.057*L6 -> 0.001016821156 | M10: =0.057*M6 -> 0.006090412373
A12: Pneumonia to Death | B12: tpDeath_U5 | C12: =D12 -> 0.004159258653 | D12: =BETAINV(RAND(),G12,H12) -> 0.004159258653 | E12: =K12 -> 0.004434040487 | F12: =(M12-L12)/(1.96*2) -> 0.0005962009832 | G12: =E12^2*(1-E12)/F12^2-E12 -> 55.06162189 | H12: =G12*(1-E12)/E12 -> 12362.87233 | J12: 0.0044439 | K12: =1-EXP(-J12*1) -> 0.004434040487 | L12: =1-EXP(-0.0033483*1) -> 0.003342700695 | M12: =1-EXP(-0.005696*1) -> 0.005679808549 | N12: Population < 5 yrs | O12: 34676610
A13: Death due to Moderate Pneumonia | B13: tpDeathm_U5 | C13: =D13 -> 0.001024908423 | D13: =BETAINV(RAND(),G13,H13) -> 0.001024908423 | E13: =K13 -> 0.0007060658499 | F13: =(M13-L13)/(1.96*2) -> 0.0002689478661 | G13: =E13^2*(1-E13)/F13^2-E13 -> 6.886569483 | H13: =G13*(1-E13)/E13 -> 9746.55142 | J13: =J12*(J6/J4) -> 0.0007063152318 | K13: =1-EXP(-J13*1) -> 0.0007060658499 | L13: =1-EXP(-(L12*(L6/L4))*1) -> 0.0004032181421 | M13: =1-EXP(-(M12*(M6/M4))*1) -> 0.001457493777
A14: Death due to Severe Pneumonia | B14: tpDeaths_U5 | C14: 0.003921263908 | D14: 0.003921263908 | E14: =K14 -> 0.003730608692 | F14: =(M14-L14)/(1.96*2) -> 0.0003260833749 | G14: =E14^2*(1-E14)/F14^2-E14 -> 130.3966529 | H14: =G14*(1-E14)/E14 -> 34822.78759 | J14: =J12-J13 -> 0.003737584768 | K14: =1-EXP(-J14*1) -> 0.003730608692 | L14: =1-EXP(-(L12-L13)*1) -> 0.002935166504 | M14: =1-EXP(-(M12-M13)*1) -> 0.004213413333 | N14: 2018 population | O14: 195875000
A15: All cause to death | B15: tpAll_Death_U5 | C15: =D15 -> 0.02422732246 | D15: =BETAINV(RAND(),G15,H15) -> 0.02422732246 | E15: =K15 -> 0.02264955865 | F15: =(M15-L15)/(1.96*2) -> 0.002265491419 | G15: =E15^2*(1-E15)/F15^2-E15 -> 97.66619161 | H15: =G15*(1-E15)/E15 -> 4214.390972 | J15: 0.02291 | K15: =1-EXP(-J15*1) -> 0.02264955865 | L15: =1-EXP(-0.01875*1) -> 0.01857531225 | M15: =1-EXP(-0.02784*1) -> 0.02745603861
A16: Remaining Well | B16: tpAsym | C16: =D16 -> 0.6773842561 | D16: =BETAINV(RAND(),G16,H16) -> 0.6773842561 | E16: =K16 -> 0.6392573045 | F16: =(M16-L16)/(1.96*2) -> 0.1014467526 | G16: =E16^2*(1-E16)/F16^2-E16 -> 13.68501755 | H16: =G16*(1-E16)/E16 -> 7.722665168 | K16: =1-(K4+K6+K8+K10+K12+K15) -> 0.6392573045 | L16: =1-(M4+M6+M8+M10+M12+M15) -> 0.4003916581 | M16: =1-(L4+L6+L8+L10+L12+L15) -> 0.7980629282 | N16: Pneumonia Incidence | O16: =O12*J4 -> 10472336.22
N17: PPMVs Access | O17: =0.43*O16 -> 4503104.575
A18: Relative Risk Ratio (RR) | B18: Name | C18: Live | D18: Probabilistic | E18: determini | F18: ln Mean | G18: ln Se | J18: CI lower | K18: CI upper
A19: RR of promotion | B19: RR_PROM | C19: =D19 -> 0.6293013558 | D19: =EXP(NORMINV(RAND(),F19,G19)) -> 0.6293013558 | E19: 0.507 | F19: =LN(E19) -> -0.6792442754 | G19: =(LN(K19)-LN(J19))/(1.96*2) -> 0.2358646772 | J19: 0.288 | K19: 0.726
A22: Cost per patient/per annum | C22: Live | D22: Cost(NGN) | E22: Cost($) | F22: 25th% | G22: 50th% | H22: DEV | I22: SE | J22: alpha | K22: beta | N22: RN
A23: Intervention | B23: C_Int | C23: =N23 -> 0.07255888517 | E23: ='Cost Analysis'!D3 -> 0.08680922798 | F23: =0.25*E23 -> 0.02170230699 | G23: =0.5*E23 -> 0.04340461399 | H23: =G23-F23 -> 0.02170230699 | I23: =H23/S27 -> 0.02170230699 | J23: =(E23^2)/(I23^2) -> 16 | K23: =(I23^2)/E23 -> 0.005425576749 | N23: =(GAMMAINV(RAND(),J23,K23)) -> 0.07255888517 | Q23: Yearly ER | R23: 306.08 | S23: SQRT (n)
A24: Promotion | B24: C_Prom | C24: =N24 -> 1.020256825 | E24: ='Cost Analysis'!D42 -> 0.810818732 | F24: =0.25*E24 -> 0.202704683 | G24: =0.5*E24 -> 0.405409366 | H24: =G24-F24 -> 0.202704683 | I24: =H24/S27 -> 0.202704683 | J24: =(E24^2)/(I24^2) -> 16 | K24: =(I24^2)/E24 -> 0.05067617075 | N24: =(GAMMAINV(RAND(),J24,K24)) -> 1.020256825
A25: Total promotion cost | B25: TPC | C25: 4447420.803 | E25: ='Cost Analysis'!E39 -> 3651201.541 | F25: 912800.3853 | G25: 1825600.771 | H25: 912800.3853 | I25: =H25/S27 -> 912800.3853 | J25: 16 | K25: 228200.0963 | N25: 4447420.803
Q27: n | R27: 1 | S27: =SQRT(R27) -> 1
A30: Disability Weights | C30: Live | D30: probabilistic | E30: deterministic | F30: se | G30: alpha | H30: beta | J30: CI lower | K30: CI upper
A31: Utility Moderate Pneumonia | B31: uMod | C31: =D31 -> 0.03930506196 | D31: =BETAINV(RAND(),G31,H31) -> 0.03930506196 | E31: 0.051 | F31: =(K31-J31)/(1.96*2) -> 0.01071428571 | G31: =E31^2*(1-E31)/F31^2-E31 -> 21.4510624 | H31: =G31*(1-E31)/E31 -> 399.1580043 | J31: 0.032 | K31: 0.074
A33: Utility Severe Pneumonia | B33: uSev | C33: =D33 -> 0.147724907 | D33: =BETAINV(RAND(),G33,H33) -> 0.147724907 | E33: 0.133 | F33: =(K33-J33)/(1.96*2) -> 0.02602040816 | G33: =E33^2*(1-E33)/F33^2-E33 -> 22.51835413 | H33: =G33*(1-E33)/E33 -> 146.7925792 | J33: 0.088 | K33: 0.19
A35: Other parameters | C35: Live | D35: probabilistic | E35: deterministic | F35: min | G35: max | H35: mode | I35: range | J35: LSR | K35: RSR | N35: RN | O35: Variate
A36: Utility Discounting Rate | B36: oDR | C36: =O36 -> 0.04890408249 | D36: =E36 -> 0.05 | E36: 0.05 | F36: =E36*0 -> 0 | G36: =E36*2 -> 0.1 | H36: =E36 -> 0.05 | I36: =G36-F36 -> 0.1 | J36: =H36-F36 -> 0.05 | K36: =G36-H36 -> 0.05 | N36: =RAND() -> 0.4783218568 | O36: =IF(N36<(J36/I36),F36+SQRT(N36*J36*I36),G36-SQRT((1-N36)*K36*I36)) -> 0.04890408249
A38: Cost Discounting Rate | B38: cDR | C38: =O38 -> 0.07306105244 | D38: =E38 -> 0.05 | E38: 0.05 | F38: =E38*0 -> 0 | G38: =E38*2 -> 0.1 | H38: =E38 -> 0.05 | I38: =G38-F38 -> 0.1 | J38: =H38-F38 -> 0.05 | K38: =G38-H38 -> 0.05 | N38: =RAND() -> 0.8548586209 | O38: =IF(N38<(J38/I38),F38+SQRT(N38*J38*I38),G38-SQRT((1-N38)*K38*I38)) -> 0.07306105244

Sheet Cost Analysis
A1: Amoxicillin Dispersible Tablets | H1: 2005 USD | J1: 2011 USD | K1: 2013 USD | L1: 2015 USD | N1: 2018 USD
B2: Per item ($) | C2: Frequency | D2: Per Treatment Course (USD)
A3: Intervention | B3: =N3 -> 0.2993421654 | C3: 0.29 | D3: =B3*C3 -> 0.08680922798 | G3: Cost/Treatment for Amoxicillin DT (0.32 - 0.8) USD | K3: =0.4*PLR_2013 -> 0.2104 | N3: =K3*((1+cDR)^5) -> 0.2993421654
A4: Intervention + promotion | D4: =D3+D42 -> 0.89762796 | G4: at maximum of $0.4 for 250mg (1*10 tabs) and $0.8 (2*20 tabs)
G6: Program Director | H6: =30159*PLR_2005 -> 10416.9186 | N6: =H6*((1+cDR)^13) -> 26052.94892
G7: Program coordinator | H7: =20091*PLR_2005 -> 6939.4314 | N7: =H7*((1+cDR)^13) -> 17355.67481
G8: Administration Officer | H8: =12409*PLR_2005 -> 4286.0686 | N8: =H8*((1+cDR)^13) -> 10719.55446 | P8: Item | Q8: QTY | R8: Life time (Years) | S8: Annualized Capital cost (USD) | T8: Annualized Operational cost (USD) | U8: Initial value (USD) | V8: future value (USD) | W8: YTD Return (USD) | X8: YTD Return % | Y8: Annualization Factor | Z8: Total Cost for 8 years (USD)
G9: Office and space (1000 meter square) | H9: =15.5*1000*PLR_2005 -> 5353.7 | N9: =H9*((1+cDR)^13) -> 13389.72473
G10: Data Entry Clerk | H10: =9399*PLR_2005 -> 3246.4146 | N10: =H10*((1+cDR)^13) -> 8119.356307 | P10: Vehicles | Q10: 14 | R10: 8 | S10: =V10*Y10 -> 35044.36802 | T10: =0.092*S10 -> 3224.081858 | U10: =8*19935.3 -> 159482.4 | V10: =U10*((1+cDR)^R10) -> 280354.9442 | W10: =V10-U10 -> 120872.5442 | X10: =(W10/U10)*100 -> 75.79052245 | Y10: =12/96 -> 0.125 | Z10: 19935.3
G11: Computers and Laptops | N11: =(16*120000)/Parameters!R23 -> 6272.869838
G12: Finance Officer | H12: =9399*PLR_2005 -> 3246.4146 | N12: =H12*((1+cDR)^13) -> 8119.356307 | P12: Total cost | S12: =S10+T10 -> 38268.44988
G13: Health Educator/Trainer | H13: =57*12409*PLR_2005 -> 244305.9102 | N13: 611014.6045
G14: External consultant (national) | H14: =11*83.1*PLR_2005 -> 315.73014 | N14: 789.6482179
G15: Logistics/Social worker | H15: =12409*PLR_2005 -> 4286.0686 | N15: 10719.55446
G16: Transport drivers | H16: =14*7208*PLR_2005 -> 34855.0048 | N16: 87173.15498
G17: Transport allowance for training | H17: =(30000/Parameters!R23)*H48*PLR_2005 -> 20374.12 | N17: 50956.13472
G18: Vehicles annualised | H18: =S12 -> 38268.44988 | N18: 95710.25829
G19: Visual electronic projector | N19: =(13*100000)/Parameters!R23 -> 4247.255619
G20: Hotel accomodation | H20: =((57*88*20000)/Parameters!R23)*PLR_2005 -> 113207.4229 | N20: =H20*((1+cDR)^13) -> 283134.324
G21: Telephone utility (CUG) | N21: =(12000*70)/Parameters!R23 -> 2744.380554
G22: Misecellaneous | N22: =(1000*12) -> 12000
G23: Electricity utility (EKO Disco) at $0.066/KWH | N23: =1000*12*0.066 -> 792
G24: Total | N24: =SUM(N6:N23) -> 1249310.801
G27: Price Level Ratio (PLR) @ 2005 | H27: 0.3454
G28: Price Level Ratio (PLR) @ 2013 | H28: 0.526
G29: Price Level Ratio (PLR) 2015 | H29: 0.4496
B34: Unit cost | C34: Qty | D34: Total
A36: Admin cost | D36: =N24 -> 1249310.801
A37: Cost of Auditoriums | D37: =H50 -> 196623.4318 | G37: No. of PPMV Shops per 100,000 population | H37: 24.58
A38: Cost of Refreshments | D38: =H55 -> 86843.30894 | G38: Population of Nigeria (2018) | H38: 195875000
A39: Cost of ARIDA | B39: 44 | C39: =H40 -> 48146 | D39: =B39*C39 -> 2118424 | E39: =SUM(D36:D39) -> 3651201.541
A40: Cost of promotion (on per patient) | D40: =(D36+D37+D38+D39)/Parameters!O17 -> 0.810818732 | G40: Estimated Number of PPMV Shops for the population | H40: 48146
G41: Assumption of 1 health educator per 10 PPMVs | H41: 10
A42: Cost of Promotion | D42: =D40 -> 0.810818732 | G42: Assumption of 4 trainings per week per Health Educator | H42: 20
G43: Assumption of 16 trainings per month per Health Educator | H43: 80
G44: Assumption of 176 trainings per annum (11 month) per Health Educator | H44: 880
G45: Estimated Number of Health Educators Needed per annum | H45: =H40/H44 -> 54.71136364
G47: Average trainees per meeting | H47: 80
G48: No. of Auditoriums | H48: =H40/H47 -> 601.825
G49: Average cost per Auditorium per day | H49: =100000/Parameters!R23 -> 326.7119707
G50: Cost of Traning Auditorium | H50: =H48*H49 -> 196623.4318
G54: Average cost of refreshment | H54: =500/Parameters!R23 -> 1.633559854
G55: Cost of refreshment | H55: =(H40*H54)+(57*88*H54) -> 86843.30894

Sheet Life table
A1: LIFE TABLE | B1: NIGERIA
B4: Male | C4: Female | D4: Average rate | E4: Annual rate | F4: Index age | G4: 1 yr Probability
A5: <1 year | B5: 0.075 | C5: 0.066 | D5: =(B5+C5)/2 -> 0.0705 | E5: =D5 -> 0.0705 | F5: 0 | G5: =E5 -> 0.0705
A6: 1-4 years | B6: 0.01 | C6: 0.011 | D6: =(B6+C6)/2 -> 0.0105 | E6: =D6 -> 0.0105 | F6: 1 | G6: =E6 -> 0.0105
A7: 5-9 years | B7: 0.003 | C7: 0.003 | D7: 0.003 | E7: 0.003 | F7: 5 | G7: =E7 -> 0.003
A8: 10-14 years | B8: 0.001 | C8: 0.002 | D8: 0.0015 | E8: 0.0015 | F8: 10
A9: 15-19 years | B9: 0.003 | C9: 0.004 | D9: 0.0035 | E9: 0.0035 | F9: 15
A10: 20-24 years | B10: 0.005 | C10: 0.005 | D10: 0.005 | E10: 0.005 | F10: 20
A11: 25-29 years | B11: 0.006 | C11: 0.006 | D11: 0.006 | E11: 0.006 | F11: 25
A12: 30-34 years | B12: 0.007 | C12: 0.007 | D12: 0.007 | E12: 0.007 | F12: 30
A13: 35-39 years | B13: 0.009 | C13: 0.009 | D13: 0.009 | E13: 0.009
A14: 40-44 years | B14: 0.011 | C14: 0.01 | D14: 0.0105 | E14: 0.0105
A15: 45-49 years | B15: 0.013 | C15: 0.01 | D15: 0.0115 | E15: 0.0115
A16: 50-54 years | B16: 0.017 | C16: 0.013 | D16: 0.015 | E16: 0.015
A17: 55-59 years | B17: 0.022 | C17: 0.017 | D17: 0.0195 | E17: 0.0195
A18: 60-64 years | B18: 0.033 | C18: 0.029 | D18: 0.031 | E18: 0.031
A19: 65-69 years | B19: 0.05 | C19: 0.046 | D19: 0.048 | E19: 0.048
A20: 70-74 years | B20: 0.081 | C20: 0.078 | D20: 0.0795 | E20: 0.0795
A21: 75-79 years | B21: 0.133 | C21: 0.128 | D21: 0.1305 | E21: 0.1305
A22: 80-84 years | B22: 0.213 | C22: 0.209 | D22: 0.211 | E22: 0.211
A23: 85+ years | B23: 0.346 | C23: 0.333 | D23: 0.3395 | E23: 0.3395

Sheet Amoxicillin DT
A1: MARKOV CYCLE
F3: AMOXICILLIN DT
A4: Cycle | C4: Death Risk | K4: HALF CYCLE CORRECTION
E6: Asymptomatic | F6: Moderate Pneumonia | G6: Severe Pneumonia | H6: Death | I6: Pneumonia Death | J6: Check | K6: Asymtomatic | L6: Moderate Pneumonia | M6: Severe Pneumonia | N6: Pneumonia death | O6: Cost | P6: Life Years | Q6: YLD | R6: YLL | S6: DALY
A7: 0 | E7: =Parameters!O12 -> 34676610
A8: 1 | C8: =VLOOKUP(cycle+Age,Lifetable,2,TRUE) -> 0.0105 | E8: =E7-SUM(F8:H8) -> 26710162.45 | F8: =(E7*tpA2B)+(F7*tpB2B) -> 7602343.142 | G8: =(F7*tpB2C)+(G7*tpC2C) -> 0 | H8: =(E7*MR)+((F7+G7)*MR)+H7 -> 364104.405 | I8: =(F7*tpDeathm_U5)+(G7*tpDeaths_U5)+I7 -> 0 | J8: =SUM(E8:H8) -> 34676610 | K8: =(E8+E9)/2 -> 27174732.86 | L8: 6802188.23 | M8: 155443.8518 | N8: =(I8+I9)/2 -> 3895.852761 | O8: =((L8*C_Int)/(1+cDR)^cycle) -> 459954.4393 | P8: =SUM(K8:M8) -> 34132364.94 | Q8: =((L8*uMod+M8*uSev)*(1-EXP(-oDR)))/oDR -> 283338.6819 | R8: =(N8*54.7*(1-EXP(-oDR)))/oDR -> 207976.2539 | S8: =Q8+R8 -> 491314.9358
A9: 2 | C9: =VLOOKUP(cycle+Age,Lifetable,2,TRUE) -> 0.0105 | E9: =E7-SUM(F9:H9) -> 27639303.26 | F9: =(E8*tpA2B)+(F8*tpB2B) -> 6002033.318 | G9: =(F8*tpB2C)+(G8*tpC2C) -> 310887.7035 | H9: =(E8*MR)+((F8+G8)*MR)+H8 -> 724385.7137 | I9: =(F8*tpDeathm_U5)+(G8*tpDeaths_U5)+I8 -> 7791.705523 | J9: =SUM(E9:H9) -> 34676610 | K9: 27406901.08 | L9: 6088494.017 | M9: 278580.0084 | N9: =(I9+I10)/2 -> 11477.00914 | O9: =((L9*C_Int*1.59)/(1+cDR)^cycle) -> 610026.5613 | P9: =SUM(K9:M9) -> 33773975.11 | Q9: =((L9*uMod+M9*uSev)*(1-EXP(-oDR)))/oDR -> 273714.4149 | R9: =(N9*57.9*(1-EXP(-oDR)))/oDR -> 648531.6587 | S9: =Q9+R9 -> 922246.0736
A10: =A9+1 -> 3 | C10: =VLOOKUP(cycle+Age,Lifetable,2,TRUE) -> 0.0105 | E10: =E7-SUM(F10:H10) -> 27174498.9 | F10: =(E9*tpA2B)+(F9*tpB2B) -> 6174954.717 | G10: =(F9*tpB2C)+(G9*tpC2C) -> 246272.3132 | H10: =(E9*MR)+((F9+G9)*MR)+H9 -> 1080884.069 | I10: =(F9*tpDeathm_U5)+(G9*tpDeaths_U5)+I9 -> 15162.31276 | J10: =SUM(E10:H10) -> 34676610 | K10: 27169943.45 | L10: 6125666.838 | M10: 249722.0504 | N10: =(I10+I11)/2 -> 18809.54368 | O10: =((L10*C_Int*1.59)/(1+cDR)^cycle) -> 571962.8245 | P10: 33545332.34 | Q10: =((L10*uMod+M10*uSev)*(1-EXP(-oDR)))/oDR -> 270979.8661 | R10: =(N10*57.9*(1-EXP(-oDR)))/oDR -> 1062871.381 | S10: =Q10+R10 -> 1333851.247
A11: =A10+1 -> 4 | C11: =VLOOKUP(cycle+Age,Lifetable,2,TRUE) -> 0.003 | E11: =E7-SUM(F11:H11) -> 27165388.01 | F11: =(E10*tpA2B)+(F10*tpB2B) -> 6076378.959 | G11: =(F10*tpB2C)+(G10*tpC2C) -> 253171.7875 | H11: =(E10*MR)+((F10+G10)*MR)+H10 -> 1181671.247 | I11: =(F10*tpDeathm_U5)+(G10*tpDeaths_U5)+I10 -> 22456.7746 | J11: =SUM(E11:H11) -> 34676610 | K11: 27033686.57 | L11: 6074432.275 | M11: 251165.4037 | N11: =(I11+I12)/2 -> 26067.01728 | O11: =((L11*C_Int*1.59)/(1+cDR)^cycle) -> 528561.7013 | P11: 33359284.25 | Q11: =((L11*uMod+M11*uSev)*(1-EXP(-oDR)))/oDR -> 269222.6259 | R11: =(N11*57.9*(1-EXP(-oDR)))/oDR -> 1472969.634 | S11: =Q11+R11 -> 1742192.26
A12: 5 | C12: 0.0081 | E12: =E7-SUM(F12:H12) -> 26901985.14 | F12: =(E11*tpA2B)+(F11*tpB2B) -> 6072485.591 | G12: =(F11*tpB2C)+(G11*tpC2C) -> 249159.0199 | H12: =(E11*MR)+((F11+G11)*MR)+H11 -> 1452980.25 | I12: =(F11*tpDeathm_U5)+(G11*tpDeaths_U5)+I11 -> 29677.25997 | J12: =SUM(E12:H12) -> 34676610 | K12: =E12 -> 26901985.14 | L12: =F12 -> 6072485.591 | M12: =G12 -> 249159.0199 | N12: =I12 -> 29677.25997 | O12: =((L12*C_Int*1.59)/(1+cDR)^cycle) -> 492415.8891 | P12: 33223629.75 | Q12: =((L12*uMod+M12*uSev)*(1-EXP(-oDR)))/oDR -> 268858.6901 | R12: =(N12*57.9*(1-EXP(-oDR)))/oDR -> 1676973.713 | S12: =Q12+R12 -> 1945832.403
I13: Pneu. Death | O13: STDcost | P13: STDlys | Q13: YLD | R13: YLL | S13: STDdalys
I14: =SUM(I8:I12)/5 -> 15017.61057 | K14: =SUM(K8:K12)/5 -> 27137449.82 | L14: =SUM(L8:L12)/5 -> 6232653.39 | M14: =SUM(M8:M12)/5 -> 236814.0668 | N14: =SUM(N8:N12)/5 -> 17985.33657 | O14: =SUM(O8:O12)/L14 -> 0.4272532497 | P14: =SUM(P8:P12)/E7 -> 4.845761636 | Q14: =SUM(Q8:Q12)/E7 -> 0.03939584287 | R14: =SUM(R8:R12)/E7 -> 0.14618853 | S14: =SUM(S8:S12)/E7 -> 0.1855843729

Sheet Amoxicillin DT + Promotion
A1: MARKOV CYCLE
F3: AMOXICILLIN DT + PROMOTION
A4: Cycle | C4: Death Risk | K4: HALF CYCLE CORRECTION
E6: Asymptomatic | F6: Moderate Pneumonia | G6: Severe Pneumonia | H6: Death | I6: Pneumonia Death | J6: Check | K6: Asymtomatic | L6: Moderate Pneumonia | M6: Severe Pneumonia | N6: Pneumonia death | O6: Cost | P6: Life Years | Q6: YLD | R6: YLL | S6: DALY
A7: 0 | E7: =Parameters!O12 -> 34676610
A8: 1 | C8: =VLOOKUP(cycle+Age,Lifetable,2,TRUE) -> 0.0105 | E8: =E7-SUM(F8:H8) -> 26710162.45 | F8: =(E7*tpA2B)+(F7*tpB2B) -> 7602343.142 | G8: =(F7*tpB2C*RR_PROM)+(G7*tpC2C) -> 0 | H8: =(E7*MR)+((F7+G7)*MR)+H7 -> 364104.405 | I8: =(F7*tpDeathm_U5)+(G7*tpDeaths_U5)+I7 -> 0 | J8: =SUM(E8:H8) -> 34676610 | K8: =(E8+E9)/2 -> 27232355.68 | L8: 6802188.23 | M8: 97821.02667 | N8: =(I8+I9)/2 -> 3895.852761 | O8: =(L8*(C_Int+C_Prom)/(1+cDR)^cycle) -> 6927414.006 | P8: =SUM(K8:M8) -> 34132364.94 | Q8: =((L8*uMod+M8*uSev)*(1-EXP(-oDR)))/oDR -> 275031.1472 | R8: =(N8*54.7*(1-EXP(-oDR)))/oDR -> 207976.2539 | S8: =Q8+R8 -> 483007.4012
A9: 2 | C9: =VLOOKUP(cycle+Age,Lifetable,2,TRUE) -> 0.0105 | E9: =E7-SUM(F9:H9) -> 27754548.91 | F9: =(E8*tpA2B)+(F8*tpB2B) -> 6002033.318 | G9: =(F8*tpB2C*RR_PROM)+(G8*tpC2C) -> 195642.0533 | H9: =(E8*MR)+((F8+G8)*MR)+H8 -> 724385.7137 | I9: =(F8*tpDeathm_U5)+(G8*tpDeaths_U5)+I8 -> 7791.705523 | J9: =SUM(E9:H9) -> 34676610 | K9: 27497537.35 | L9: 6101126.985 | M9: 175310.777 | N9: =(I9+I10)/2 -> 11251.05484 | O9: =(L9*(1.59*C_Int+C_Prom)/(1+cDR)^cycle) -> 6017225.923 | P9: =SUM(K9:M9) -> 33773975.11 | Q9: =((L9*uMod+M9*uSev)*(1-EXP(-oDR)))/oDR -> 259310.5904 | R9: =(N9*57.9*(1-EXP(-oDR)))/oDR -> 635763.6528 | S9: =Q9+R9 -> 895074.2432
A10: =A9+1 -> 3 | C10: =VLOOKUP(cycle+Age,Lifetable,2,TRUE) -> 0.0105 | E10: =E7-SUM(F10:H10) -> 27240525.78 | F10: =(E9*tpA2B)+(F9*tpB2B) -> 6200220.652 | G10: =(F9*tpB2C*RR_PROM)+(G9*tpC2C) -> 154979.5006 | H10: =(E9*MR)+((F9+G9)*MR)+H9 -> 1080884.069 | I10: =(F9*tpDeathm_U5)+(G9*tpDeaths_U5)+I9 -> 14710.40415 | J10: =SUM(E10:H10) -> 34676610 | K10: 27242076.32 | L10: 6145780.496 | M10: 157475.5272 | N10: =(I10+I11)/2 -> 18191.5911 | O10: =(L10*(1.59*C_Int+C_Prom)/(1+cDR)^cycle) -> 5648574.568 | P10: 33545332.34 | Q10: =((L10*uMod+M10*uSev)*(1-EXP(-oDR)))/oDR -> 258452.1505 | R10: =(N10*57.9*(1-EXP(-oDR)))/oDR -> 1027952.719 | S10: =Q10+R10 -> 1286404.869
A11: =A10+1 -> 4 | C11: =VLOOKUP(cycle+Age,Lifetable,2,TRUE) -> 0.003 | E11: =E7-SUM(F11:H11) -> 27243626.86 | F11: =(E10*tpA2B)+(F10*tpB2B) -> 6091340.34 | G11: =(F10*tpB2C*RR_PROM)+(G10*tpC2C) -> 159971.5539 | H11: =(E10*MR)+((F10+G10)*MR)+H10 -> 1181671.247 | I11: =(F10*tpDeathm_U5)+(G10*tpDeaths_U5)+I10 -> 21672.77805 | J11: =SUM(E11:H11) -> 34676610 | K11: 27110073.83 | L11: 6090633.21 | M11: 158577.2078 | N11: =(I11+I12)/2 -> 25107.9564 | O11: =(L11*(1.59*C_Int+C_Prom)/(1+cDR)^cycle) -> 5216747.728 | P11: 33359284.25 | Q11: =((L11*uMod+M11*uSev)*(1-EXP(-oDR)))/oDR -> 256495.5612 | R11: =(N11*57.9*(1-EXP(-oDR)))/oDR -> 1418775.955 | S11: =Q11+R11 -> 1675271.517
A12: 5 | C12: 0.0081 | E12: =E7-SUM(F12:H12) -> 26976520.81 | F12: =(E11*tpA2B)+(F11*tpB2B) -> 6089926.08 | G12: =(F11*tpB2C*RR_PROM)+(G11*tpC2C) -> 157182.8617 | H12: =(E11*MR)+((F11+G11)*MR)+H11 -> 1452980.25 | I12: =(F11*tpDeathm_U5)+(G11*tpDeaths_U5)+I11 -> 28543.13475 | J12: =SUM(E12:H12) -> 34676610 | K12: =E12 -> 26976520.81 | L12: =F12 -> 6089926.08 | M12: =G12 -> 157182.8617 | N12: =I12 -> 28543.13475 | O12: =(L12*(1.59*C_Int+C_Prom)/(1+cDR)^cycle) -> 4860992.807 | P12: 33223629.75 | Q12: =((L12*uMod+M12*uSev)*(1-EXP(-oDR)))/oDR -> 256267.4119 | R12: =(N12*57.9*(1-EXP(-oDR)))/oDR -> 1612887.669 | S12: =Q12+R12 -> 1869155.081
I13: Pneu. Death | O13: STDcost | P13: STDlys | Q13: YLD | R13: YLL | S13: STDdalys
I14: =SUM(I8:I12)/5 -> 14543.60449 | K14: =SUM(K8:K12)/5 -> 27211712.8 | L14: =SUM(L8:L12)/5 -> 6245931 | M14: =SUM(M8:M12)/5 -> 149273.4801 | N14: =SUM(N8:N12)/5 -> 17397.91797 | O14: =SUM(O8:O12)/(L14*0.43) -> 10.67521233 | P14: =SUM(P8:P12)/E7 -> 4.845761636 | Q14: =SUM(Q8:Q12)/E7 -> 0.03764949519 | R14: =SUM(R8:R12)/E7 -> 0.1414024107 | S14: =SUM(S8:S12)/E7 -> 0.1790519059
L19: severe pneu. Diff. | M19: ='Amoxicillin DT'!M14-'Amoxicillin DT + Promotion'!M14 -> 87540.58674

Sheet Health Benefit
D1: HEALTH BENEFIT RESULT
D2: Amoxicillin DT | F2: Amoxicillin DT + Promotion | H2: Total cost of Promotion | I2: Severe pneumonia averted
D3: DALYs | E3: Cost | F3: DALY | G3: Cost | J3: DALY averted | K3: Incremental cost
D4: ='Amoxicillin DT'!S14 -> 0.1855843729 | E4: ='Amoxicillin DT'!O14 -> 0.4272532497 | F4: ='Amoxicillin DT + Promotion'!S14 -> 0.1790519059 | G4: ='Amoxicillin DT + Promotion'!O14 -> 10.67521233 | H4: =Parameters!C25 -> 4447420.803 | I4: ='Amoxicillin DT + Promotion'!M19 -> 87540.58674
A5: Trial
A6: 1 | D6: 0.1623444355 | E6: 0.390124995 | F6: 0.1610021143 | G6: 8.178770878 | H6: 3049339.463 | I6: 17570.7836 | J6: =D6-F6 -> 0.001342321231 | K6: =G6-E6 -> 7.788645883
A7: =A6+1 -> 2 | D7: 0.1961270977 | E7: 0.5120149463 | F7: 0.1822729199 | G7: 8.578888339 | H7: 3389578.717 | I7: 188867.2384 | J7: 0.01385417775 | K7: 8.066873393
A8: 3 | D8: 0.3266837034 | E8: 0.4925650696 | F8: 0.3153862055 | G8: 7.359224515 | H8: 3034911.808 | I8: 189425.8161 | J8: 0.01129749797 | K8: 6.866659446
A9: 4 | D9: 0.2121772429 | E9: 0.5626207893 | F9: 0.2093531458 | G9: 7.736695324 | H9: 4294776.128 | I9: 45184.4374 | J9: 0.002824097065 | K9: 7.174074535
A10: 5 | D10: 0.2120582305 | E10: 0.5564553621 | F10: 0.2059544388 | G10: 10.978281 | H10: 3357799.674 | I10: 89399.28963 | J10: 0.00610379168 | K10: 10.42182564
A11: 6 | D11: 0.1599336436 | E11: 0.5706510407 | F11: 0.1501656197 | G11: 10.0600207 | H11: 3546769.224 | I11: 124957.0222 | J11: 0.009768023933 | K11: 9.489369656
A12: 7 | D12: 0.218717838 | E12: 0.4814071934 | F12: 0.2142041899 | G12: 8.044040987 | H12: 5173033.628 | I12: 67545.33781 | J12: 0.00451364805 | K12: 7.562633794
A13: 8 | D13: 0.1565585322 | E13: 0.5132143089 | F13: 0.1530419346 | G13: 10.60931207 | H13: 2181603.803 | I13: 57040.07216 | J13: 0.003516597572 | K13: 10.09609776
A14: 9 | D14: 0.1153864562 | E14: 0.5559411096 | F14: 0.1105577713 | G14: 9.5117238 | H14: 3083285.782 | I14: 72638.74792 | J14: 0.004828684902 | K14: 8.95578269
A15: 10 | D15: 0.182357582 | E15: 0.7063885816 | F15: 0.1706877425 | G15: 7.503420183 | H15: 3719457.15 | I15: 176477.2867 | J15: 0.01166983948 | K15: 6.797031601
A16: 11 | D16: 0.1538873419 | E16: 0.5237208687 | F16: 0.1437094895 | G16: 8.487350589 | H16: 4351819.7 | I16: 142025.6877 | J16: 0.01017785241 | K16: 7.963629721
A17: 12 | D17: 0.1514169909 | E17: 0.3592482034 | F17: 0.1453094697 | G17: 14.26555039 | H17: 3142956.814 | I17: 83677.37288 | J17: 0.006107521197 | K17: 13.90630219
A18: 13 | D18: 0.1953466419 | E18: 0.4690349414 | F18: 0.1752161791 | G18: 8.795243726 | H18: 4171557.12 | I18: 295855.689 | J18: 0.02013046283 | K18: 8.326208785
A19: 14 | D19: 0.1533763375 | E19: 0.3970795622 | F19: 0.1483908369 | G19: 5.657785284 | H19: 3948815.263 | I19: 71723.36756 | J19: 0.004985500582 | K19: 5.260705722
A20: 15 | D20: 0.09158263626 | E20: 0.4410173078 | F20: 0.08044446113 | G20: 7.846207147 | H20: 3431218.21 | I20: 188570.9926 | J20: 0.01113817512 | K20: 7.405189839
A21: 16 | D21: 0.1785694187 | E21: 0.5049836635 | F21: 0.1726094737 | G21: 10.61755379 | H21: 4146996.706 | I21: 96799.37087 | J21: 0.005959944999 | K21: 10.11257013
A22: 17 | D22: 0.247473381 | E22: 0.3298776827 | F22: 0.2358676173 | G22: 8.986128686 | H22: 1971773.616 | I22: 165624.1601 | J22: 0.0116057637 | K22: 8.656251004
A23: 18 | D23: 0.1544463873 | E23: 0.4749885624 | F23: 0.1509195432 | G23: 6.235753737 | H23: 4160652.114 | I23: 54823.71702 | J23: 0.003526844114 | K23: 5.760765175
A24: 19 | D24: 0.1591258611 | E24: 0.3551465725 | F24: 0.1527793364 | G24: 8.392786289 | H24: 2972640.344 | I24: 93143.10394 | J24: 0.0063465247 | K24: 8.037639716
A25: 20 | D25: 0.1080929861 | E25: 0.468444693 | F25: 0.1009881108 | G25: 8.186164869 | H25: 2489143.253 | I25: 87184.98728 | J25: 0.007104875333 | K25: 7.717720176
A26: 21 | D26: 0.3056266717 | E26: 0.4573449582 | F26: 0.2841489945 | G26: 6.885700685 | H26: 3663455.399 | I26: 305057.6982 | J26: 0.02147767722 | K26: 6.428355726
A27: 22 | D27: 0.1135682168 | E27: 0.633635266 | F27: 0.1056025788 | G27: 9.090886256 | H27: 3838118.652 | I27: 133393.9699 | J27: 0.00796563803 | K27: 8.45725099
A28: 23 | D28: 0.1565734944 | E28: 0.430348386 | F28: 0.1417940569 | G28: 11.48347962 | H28: 2712747.761 | I28: 219558.1717 | J28: 0.01477943748 | K28: 11.05313123
A29: 24 | D29: 0.07048174464 | E29: 0.5516880659 | F29: 0.06223317316 | G29: 9.503952947 | H29: 2787538.461 | I29: 109909.1966 | J29: 0.00824857149 | K29: 8.952264882
A30: 25 | D30: 0.1825671112 | E30: 0.5227581439 | F30: 0.1739872103 | G30: 12.02862714 | H30: 2188839.487 | I30: 130613.5582 | J30: 0.008579900856 | K30: 11.505869
A31: 26 | D31: 0.2518595756 | E31: 0.4881957982 | F31: 0.246611444 | G31: 7.301060608 | H31: 3590854.641 | I31: 83282.34976 | J31: 0.005248131574 | K31: 6.81286481
A32: 27 | D32: 0.09888803053 | E32: 0.5489313301 | F32: 0.0962109036 | G32: 10.42452592 | H32: 3379497.129 | I32: 41226.76861 | J32: 0.002677126925 | K32: 9.875594591
A33: 28 | D33: 0.09785318901 | E33: 0.4891672733 | F33: 0.08895147122 | G33: 7.652147858 | H33: 3170721.981 | I33: 108385.2606 | J33: 0.00890171779 | K33: 7.162980585
A34: 29 | D34: 0.1207809912 | E34: 0.5919840471 | F34: 0.1167784001 | G34: 9.315245896 | H34: 2916058.7 | I34: 60685.39977 | J34: 0.004002591085 | K34: 8.723261849
A35: 30 | D35: 0.2116999237 | E35: 0.321362713 | F35: 0.2084789534 | G35: 7.309486495 | H35: 4223372.333 | I35: 47527.28278 | J35: 0.003220970337 | K35: 6.988123782
A36: 31 | D36: 0.1650582863 | E36: 0.3459570449 | F36: 0.153322798 | G36: 11.48633072 | H36: 2248351.133 | I36: 178220.3714 | J36: 0.01173548829 | K36: 11.14037367
A37: 32 | D37: 0.2377157779 | E37: 0.3891037555 | F37: 0.2156743823 | G37: 7.062776896 | H37: 2274777.085 | I37: 293943.2282 | J37: 0.02204139562 | K37: 6.673673141
A38: 33 | D38: 0.1181920199 | E38: 0.3777931574 | F38: 0.1113144012 | G38: 7.90044028 | H38: 2881911.238 | I38: 122564.7094 | J38: 0.006877618723 | K38: 7.522647122
A39: 34 | D39: 0.2846433567 | E39: 0.4315177214 | F39: 0.2612954177 | G39: 11.30823826 | H39: 4711104.879 | I39: 319602.9466 | J39: 0.02334793895 | K39: 10.87672054
A40: 35 | D40: 0.1440799685 | E40: 0.5030152814 | F40: 0.1337851367 | G40: 9.112742439 | H40: 1893952.792 | I40: 172885.6016 | J40: 0.01029483179 | K40: 8.609727157
A41: 36 | D41: 0.1516995094 | E41: 0.5910420024 | F41: 0.1448785889 | G41: 7.820021524 | H41: 2432999.861 | I41: 93762.47685 | J41: 0.00682092049 | K41: 7.228979522
A42: 37 | D42: 0.2028973262 | E42: 0.2873460707 | F42: 0.1997134004 | G42: 6.885462029 | H42: 2012613 | I42: 44051.80305 | J42: 0.003183925793 | K42: 6.598115958
A43: 38 | D43: 0.2467572755 | E43: 0.5660769918 | F43: 0.2278421592 | G43: 9.886154378 | H43: 3896899.92 | I43: 234818.2819 | J43: 0.01891511629 | K43: 9.320077386
A44: 39 | D44: 0.2535855218 | E44: 0.5678516493 | F44: 0.2366267949 | G44: 11.00197931 | H44: 2510384.859 | I44: 226883.5915 | J44: 0.01695872693 | K44: 10.43412766
A45: 40 | D45: 0.2065784674 | E45: 0.3961258413 | F45: 0.203233674 | G45: 11.26396052 | H45: 3890369.421 | I45: 50245.45958 | J45: 0.003344793401 | K45: 10.86783468
A46: 41 | D46: 0.229969637 | E46: 0.2559667549 | F46: 0.2170369894 | G46: 8.650971692 | H46: 4973829.807 | I46: 195009.0273 | J46: 0.01293264752 | K46: 8.395004937
A47: 42 | D47: 0.1350656417 | E47: 0.3779399876 | F47: 0.1260805522 | G47: 7.280989498 | H47: 2060269.796 | I47: 132981.0268 | J47: 0.008985089498 | K47: 6.903049511
A48: 43 | D48: 0.1945359129 | E48: 0.5676486806 | F48: 0.1827590274 | G48: 7.434811047 | H48: 2528375.322 | I48: 166722.6146 | J48: 0.01177688554 | K48: 6.867162367
A49: 44 | D49: 0.1882538319 | E49: 0.3934637415 | F49: 0.1822887055 | G49: 10.62081834 | H49: 4391429.007 | I49: 77777.04683 | J49: 0.005965126367 | K49: 10.2273546
A50: 45 | D50: 0.1469809669 | E50: 0.3602806933 | F50: 0.1370051997 | G50: 7.521952761 | H50: 4317620.012 | I50: 141364.0931 | J50: 0.00997576719 | K50: 7.161672068
A51: 46 | D51: 0.2834410394 | E51: 0.5233292618 | F51: 0.2591160327 | G51: 12.71614152 | H51: 2746217.924 | I51: 349832.9768 | J51: 0.02432500668 | K51: 12.19281226
A52: 47 | D52: 0.1654505061 | E52: 0.4829656301 | F52: 0.1450114533 | G52: 9.217647279 | H52: 3216681.144 | I52: 280395.258 | J52: 0.02043905283 | K52: 8.734681649
A53: 48 | D53: 0.2688843946 | E53: 0.4274133424 | F53: 0.2576174178 | G53: 4.665637115 | H53: 2329949.424 | I53: 160145.053 | J53: 0.01126697685 | K53: 4.238223773
A54: 49 | D54: 0.1802712621 | E54: 0.4906901778 | F54: 0.1661429289 | G54: 7.71482797 | H54: 3407931.006 | I54: 198414.9055 | J54: 0.0141283332 | K54: 7.224137792
A55: 50 | D55: 0.159516859 | E55: 0.5309410752 | F55: 0.1515529701 | G55: 8.343351111 | H55: 5161664.975 | I55: 117436.6938 | J55: 0.007963888893 | K55: 7.812410036
A56: 51 | D56: 0.2775660669 | E56: 0.5002471026 | F56: 0.271059928 | G56: 10.47075032 | H56: 3548485.64 | I56: 91475.51375 | J56: 0.006506138891 | K56: 9.970503217
A57: 52 | D57: 0.2077122759 | E57: 0.6853074256 | F57: 0.2050229992 | G57: 6.963206675 | H57: 2971855.617 | I57: 40402.04307 | J57: 0.002689276704 | K57: 6.27789925
A58: 53 | D58: 0.1318031542 | E58: 0.4079392566 | F58: 0.1255708874 | G58: 8.66910857 | H58: 3287476.408 | I58: 77917.05444 | J58: 0.00623226683 | K58: 8.261169314
A59: 54 | D59: 0.1887592959 | E59: 0.5308642219 | F59: 0.1830545874 | G59: 9.977526202 | H59: 4705076.737 | I59: 101321.8357 | J59: 0.005704708504 | K59: 9.44666198
A60: 55 | D60: 0.2110567878 | E60: 0.7111874598 | F60: 0.2012946974 | G60: 12.43254349 | H60: 3624450.701 | I60: 146685.4948 | J60: 0.009762090317 | K60: 11.72135603
A61: 56 | D61: 0.1683692291 | E61: 0.648738393 | F61: 0.1565894876 | G61: 10.88468262 | H61: 2142334.702 | I61: 156873.756 | J61: 0.01177974148 | K61: 10.23594423
A62: 57 | D62: 0.1917914559 | E62: 0.3060230937 | F62: 0.1840686695 | G62: 6.038154462 | H62: 2709977.035 | I62: 117169.0559 | J62: 0.007722786432 | K62: 5.732131369
A63: 58 | D63: 0.1489947479 | E63: 0.7694107425 | F63: 0.1428568444 | G63: 7.767385116 | H63: 3959561.608 | I63: 89208.2976 | J63: 0.00613790347 | K63: 6.997974374
A64: 59 | D64: 0.2418165166 | E64: 0.6971739768 | F64: 0.2319840747 | G64: 10.91171063 | H64: 4541996.526 | I64: 134687.2753 | J64: 0.009832441944 | K64: 10.21453665
A65: 60 | D65: 0.1482783492 | E65: 0.4589449907 | F65: 0.135205397 | G65: 10.38778332 | H65: 3057077.785 | I65: 213163.5309 | J65: 0.01307295226 | K65: 9.928838325
A66: =A65+1 -> 61 | D66: 0.3060934044 | E66: 0.6274116774 | F66: 0.286938283 | G66: 8.6154077 | H66: 3679239.085 | I66: 264500.1801 | J66: 0.01915512143 | K66: 7.987996022
A67: 62 | D67: 0.1644782583 | E67: 0.6046008736 | F67: 0.153147233 | G67: 8.274248131 | H67: 3382513.779 | I67: 173761.1944 | J67: 0.01133102528 | K67: 7.669647258
A68: 63 | D68: 0.1285229331 | E68: 0.5352331947 | F68: 0.1252848365 | G68: 7.789103239 | H68: 3331983.981 | I68: 48488.8912 | J68: 0.003238096614 | K68: 7.253870044
A69: 64 | D69: 0.08810741249 | E69: 0.5500518958 | F69: 0.0841651771 | G69: 7.396589738 | H69: 3272314.34 | I69: 53177.12712 | J69: 0.003942235393 | K69: 6.846537842
A70: 65 | D70: 0.2127101083 | E70: 0.4599532949 | F70: 0.1949135524 | G70: 7.847255652 | H70: 4025567.267 | I70: 247058.3493 | J70: =D70-F70 -> 0.01779655584 | K70: =G70-E70 -> 7.387302357
A71: 66 | D71: 0.1065394956 | E71: 0.5133335715 | F71: 0.09848414113 | G71: 10.16702311 | H71: 3402725.262 | I71: 114413.9092 | J71: 0.008055354487 | K71: 9.653689543
A72: 67 | D72: 0.283843202 | E72: 0.4364246554 | F72: 0.2666132352 | G72: 9.632923316 | H72: 3374476.009 | I72: 272698.0606 | J72: 0.01722996684 | K72: 9.19649866
A73: 68 | D73: 0.1271581097 | E73: 0.4072193065 | F73: 0.1219479403 | G73: 4.162016053 | H73: 3871728.62 | I73: 72110.07403 | J73: 0.005210169417 | K73: 3.754796747
A74: 69 | D74: 0.1603706686 | E74: 0.4532956415 | F74: 0.1536032762 | G74: 8.277383766 | H74: 2451422.292 | I74: 94879.22288 | J74: 0.006767392381 | K74: 7.824088125
A75: 70 | D75: 0.1570833493 | E75: 0.4171309246 | F75: 0.1481710034 | G75: 7.539160157 | H75: 3094519.683 | I75: 138197.3257 | J75: 0.008912345926 | K75: 7.122029233
A76: 71 | D76: 0.1382144541 | E76: 0.3923650157 | F76: 0.1288617502 | G76: 10.23267342 | H76: 3935284.068 | I76: 158882.2043 | J76: 0.009352703947 | K76: 9.840308407
A77: 72 | D77: 0.1930232653 | E77: 0.2526062937 | F77: 0.1803538696 | G77: 6.595013104 | H77: 3592682.573 | I77: 165526.8231 | J77: 0.01266939563 | K77: 6.342406811
A78: 73 | D78: 0.243726352 | E78: 0.4479378897 | F78: 0.2347116373 | G78: 11.29304888 | H78: 2936188.548 | I78: 134387.0322 | J78: 0.009014714682 | K78: 10.84511099
A79: 74 | D79: 0.1141181459 | E79: 0.448372234 | F79: 0.1101396388 | G79: 8.220627137 | H79: 3948024.351 | I79: 58915.12106 | J79: 0.003978507156 | K79: 7.772254903
A80: 75 | D80: 0.1382785071 | E80: 0.5020607996 | F80: 0.1280998331 | G80: 10.67421473 | H80: 3739681.772 | I80: 155383.0125 | J80: 0.01017867396 | K80: 10.17215393
A81: 76 | D81: 0.1504512158 | E81: 0.4647835553 | F81: 0.1449269438 | G81: 7.935535638 | H81: 4263263.55 | I81: 85912.88789 | J81: 0.005524271989 | K81: 7.470752082
A82: 77 | D82: 0.2278980503 | E82: 0.367374452 | F82: 0.2112945654 | G82: 7.488809507 | H82: 2024769.923 | I82: 272724.3953 | J82: 0.01660348482 | K82: 7.121435055
A83: 78 | D83: 0.1354271272 | E83: 0.3874155255 | F83: 0.1303895496 | G83: 9.022251829 | H83: 4872973.11 | I83: 78785.61901 | J83: 0.005037577591 | K83: 8.634836303
A84: 79 | D84: 0.1980235882 | E84: 0.3256911844 | F84: 0.1904510677 | G84: 9.485401369 | H84: 3829579.732 | I84: 105701.4814 | J84: 0.007572520458 | K84: 9.159710185
A85: 80 | D85: 0.2085319252 | E85: 0.4265109134 | F85: 0.1926276473 | G85: 6.196786112 | H85: 4549346.08 | I85: 251267.3047 | J85: 0.01590427789 | K85: 5.770275198
A86: 81 | D86: 0.1808968914 | E86: 0.7072688176 | F86: 0.1582312518 | G86: 7.909713749 | H86: 4605654.008 | I86: 311369.953 | J86: 0.02266563959 | K86: 7.202444931
A87: 82 | D87: 0.1314911133 | E87: 0.5237851293 | F87: 0.1180960749 | G87: 6.526079203 | H87: 3515789.009 | I87: 198497.1879 | J87: 0.01339503833 | K87: 6.002294073
A88: 83 | D88: 0.1716294566 | E88: 0.5174067516 | F88: 0.1643470661 | G88: 9.104822125 | H88: 4400589.528 | I88: 101191.266 | J88: 0.007282390501 | K88: 8.587415373
A89: 84 | D89: 0.2137630507 | E89: 0.5680034714 | F89: 0.187256479 | G89: 10.18818847 | H89: 5276302.014 | I89: 402025.2411 | J89: 0.02650657169 | K89: 9.620185001
A90: 85 | D90: 0.1654364761 | E90: 0.3313498115 | F90: 0.1492214903 | G90: 8.032966578 | H90: 2526142.001 | I90: 225767.6655 | J90: 0.01621498584 | K90: 7.701616766
A91: 86 | D91: 0.1338161992 | E91: 0.6318407266 | F91: 0.1261255154 | G91: 8.897262552 | H91: 3809182.063 | I91: 128842.8413 | J91: 0.007690683793 | K91: 8.265421825
A92: 87 | D92: 0.2037826265 | E92: 0.4338277962 | F92: 0.201320062 | G92: 6.889172872 | H92: 4887513.148 | I92: 30040.83417 | J92: 0.002462564467 | K92: 6.455345076
A93: 88 | D93: 0.09419944628 | E93: 0.3731921107 | F93: 0.08453924071 | G93: 6.440230285 | H93: 3215623.894 | I93: 134787.3828 | J93: 0.009660205568 | K93: 6.067038174
A94: 89 | D94: 0.251349115 | E94: 0.307742678 | F94: 0.2457562634 | G94: 6.259765723 | H94: 4414319.623 | I94: 76503.0095 | J94: 0.00559285158 | K94: 5.952023045
A95: 90 | D95: 0.1363630212 | E95: 0.5909459104 | F95: 0.131966607 | G95: 6.457722486 | H95: 2209825.514 | I95: 63458.95322 | J95: 0.004396414217 | K95: 5.866776575
A96: 91 | D96: 0.1306078135 | E96: 0.6824421949 | F96: 0.1203983644 | G96: 6.569414146 | H96: 3928653.371 | I96: 139891.4636 | J96: 0.01020944909 | K96: 5.886971952
A97: 92 | D97: 0.1804878289 | E97: 0.5544681367 | F97: 0.173998446 | G97: 11.08676908 | H97: 3960154.511 | I97: 100281.7805 | J97: 0.006489382974 | K97: 10.53230094
A98: 93 | D98: 0.2110322998 | E98: 0.452740914 | F98: 0.1926945453 | G98: 10.02224831 | H98: 2907629 | I98: 269596.7683 | J98: 0.01833775444 | K98: 9.569507394
A99: 94 | D99: 0.07405597574 | E99: 0.393089215 | F99: 0.06987971738 | G99: 7.469889126 | H99: 2713454.037 | I99: 56974.93967 | J99: 0.004176258357 | K99: 7.076799911
A100: 95 | D100: 0.1538909427 | E100: 0.4078038019 | F100: 0.1472629616 | G100: 6.569250695 | H100: 4034584.663 | I100: 95202.98359 | J100: 0.006627981158 | K100: 6.161446894
A101: 96 | D101: 0.1990543321 | E101: 0.5940710415 | F101: 0.1889743444 | G101: 9.945287563 | H101: 2359863.071 | I101: 118919.9249 | J101: 0.01007998777 | K101: 9.351216522
A102: 97 | D102: 0.1961404749 | E102: 0.4594494501 | F102: 0.1778332432 | G102: 7.372096041 | H102: 3719272.25 | I102: 257059.3979 | J102: 0.01830723176 | K102: 6.91264659
A103: 98 | D103: 0.2762424963 | E103: 0.6197604611 | F103: 0.2642763766 | G103: 8.68737814 | H103: 3469929.896 | I103: 164782.113 | J103: 0.01196611966 | K103: 8.067617679
A104: 99 | D104: 0.07144819178 | E104: 0.4407613786 | F104: 0.06806117989 | G104: 8.560125586 | H104: 2642790.637 | I104: 50666.95577 | J104: 0.003387011895 | K104: 8.119364207
A105: 100 | D105: 0.2769494484 | E105: 0.4300061186 | F105: 0.2682644975 | G105: 8.86718178 | H105: 3543834.959 | I105: 122879.4196 | J105: 0.008684950964 | K105: 8.437175661
A106: 101 | D106: 0.172022814 | E106: 0.4952920252 | F106: 0.1623411176 | G106: 5.947384784 | H106: 2589457.458 | I106: 132813.9227 | J106: 0.009681696391 | K106: 5.452092758
A107: 102 | D107: 0.199657088 | E107: 0.5614845045 | F107: 0.1918138953 | G107: 13.89581065 | H107: 3038837.13 | I107: 131772.3728 | J107: 0.00784319263 | K107: 13.33432614
A108: 103 | D108: 0.1047282616 | E108: 0.6654773176 | F108: 0.1009913072 | G108: 8.093689598 | H108: 3273668.582 | I108: 53267.13374 | J108: 0.003736954448 | K108: 7.428212281
A109: 104 | D109: 0.2918955079 | E109: 0.7748351722 | F109: 0.2817313486 | G109: 8.807105703 | H109: 3728504.96 | I109: 176874.476 | J109: 0.01016415926 | K109: 8.032270531
A110: 105 | D110: 0.2196022284 | E110: 0.5081303002 | F110: 0.2085869121 | G110: 10.88387746 | H110: 2863318.641 | I110: 161893.224 | J110: 0.01101531629 | K110: 10.37574716
A111: 106 | D111: 0.1410911048 | E111: 0.4989261167 | F111: 0.137278764 | G111: 7.158340724 | H111: 3549497.355 | I111: 56954.25213 | J111: 0.00381234082 | K111: 6.659414607
A112: 107 | D112: 0.3279928211 | E112: 0.3509000915 | F112: 0.3152476492 | G112: 8.455625093 | H112: 3493889.73 | I112: 211927.5534 | J112: 0.01274517197 | K112: 8.104725002
A113: 108 | D113: 0.1964913753 | E113: 0.6537563891 | F113: 0.1880301165 | G113: 7.762156155 | H113: 3174664.204 | I113: 130030.8633 | J113: 0.008461258824 | K113: 7.108399766
A114: 109 | D114: 0.111942963 | E114: 0.4735588406 | F114: 0.1051878724 | G114: 7.101406115 | H114: 3508012.418 | I114: 91253.89135 | J114: 0.006755090545 | K114: 6.627847275
A115: 110 | D115: 0.1412876752 | E115: 0.4885996004 | F115: 0.1284272145 | G115: 5.454500632 | H115: 2122851.69 | I115: 185613.347 | J115: 0.01286046064 | K115: 4.965901031
A116: 111 | D116: 0.2432558119 | E116: 0.6443423071 | F116: 0.2237196766 | G116: 11.82329574 | H116: 4953595.729 | I116: 295019.2435 | J116: 0.01953613524 | K116: 11.17895344
A117: 112 | D117: 0.2607981991 | E117: 0.3093954824 | F117: 0.2523561704 | G117: 9.805481617 | H117: 3864045.08 | I117: 121244.557 | J117: 0.008442028648 | K117: 9.496086135
A118: 113 | D118: 0.1581131393 | E118: 0.5648052111 | F118: 0.1523177547 | G118: 8.767251104 | H118: 2999133.706 | I118: 85158.67646 | J118: 0.005795384642 | K118: 8.202445892
A119: 114 | D119: 0.1000634049 | E119: 0.4651486834 | F119: 0.09230797867 | G119: 6.976515505 | H119: 3935200.58 | I119: 109343.7781 | J119: 0.007755426199 | K119: 6.511366821
A120: 115 | D120: 0.2159357679 | E120: 0.5029828692 | F120: 0.2073214073 | G120: 11.38848653 | H120: 2199320.345 | I120: 129747.7413 | J120: 0.008614360565 | K120: 10.88550366
A121: 116 | D121: 0.1401497137 | E121: 0.5389513017 | F121: 0.1330481753 | G121: 9.808323162 | H121: 2679555.671 | I121: 90352.81322 | J121: 0.007101538357 | K121: 9.269371861
A122: 117 | D122: 0.1242850794 | E122: 0.4385580786 | F122: 0.1201947948 | G122: 8.042844752 | H122: 3832254.248 | I122: 59207.70257 | J122: 0.004090284518 | K122: 7.604286673
A123: 118 | D123: 0.249685905 | E123: 0.5135899409 | F123: 0.2320114923 | G123: 9.705546786 | H123: 3762864.533 | I123: 221841.5817 | J123: 0.01767441263 | K123: 9.191956845
A124: 119 | D124: 0.1794647821 | E124: 0.533480426 | F124: 0.1719280932 | G124: 11.07014329 | H124: 2989797.244 | I124: 111901.5624 | J124: 0.007536688878 | K124: 10.53666287
A125: 120 | D125: 0.1648502966 | E125: 0.3212386138 | F125: 0.1610043987 | G125: 9.235193617 | H125: 3964698.975 | I125: 55926.70335 | J125: 0.003845897878 | K125: 8.913955003
A126: 121 | D126: 0.1269489092 | E126: 0.5206747226 | F126: 0.117709358 | G126: 6.186141533 | H126: 3630119.316 | I126: 129526.1021 | J126: 0.009239551273 | K126: 5.665466811
A127: 122 | D127: 0.1438570731 | E127: 0.3467129921 | F127: 0.1351983283 | G127: 13.99720593 | H127: 2886953.706 | I127: 107621.3394 | J127: 0.008658744846 | K127: 13.65049294
A128: 123 | D128: 0.1803622759 | E128: 0.3063890922 | F128: 0.1670404374 | G128: 7.738611879 | H128: 1806213.874 | I128: 203031.4902 | J128: 0.01332183852 | K128: 7.432222787
A129: 124 | D129: 0.1890233083 | E129: 0.3650463657 | F129: 0.1770798405 | G129: 6.199581533 | H129: 3731831.291 | I129: 170556.0008 | J129: 0.01194346774 | K129: 5.834535168
A130: =A129+1 -> 125 | D130: 0.09754181594 | E130: 0.3973540983 | F130: 0.08949828567 | G130: 8.387911858 | H130: 2974086.194 | I130: 113736.701 | J130: 0.008043530279 | K130: 7.99055776
A131: 126 | D131: 0.1624377226 | E131: 0.6140360869 | F131: 0.1508194548 | G131: 9.846033626 | H131: 2252760.003 | I131: 164816.7604 | J131: 0.01161826781 | K131: 9.231997539
A132: 127 | D132: 0.1724128622 | E132: 0.3193551485 | F132: 0.1663563621 | G132: 7.188096636 | H132: 3278976.437 | I132: 84873.08266 | J132: 0.006056500136 | K132: 6.868741487
A133: 128 | D133: 0.1380660689 | E133: 0.4219628688 | F133: 0.13370268 | G133: 10.79116511 | H133: 4247789.58 | I133: 65581.03747 | J133: 0.004363388855 | K133: 10.36920224
A134: 129 | D134: 0.1678944069 | E134: 0.4451592766 | F134: 0.1566215673 | G134: 9.839642366 | H134: 3267558.214 | I134: 168623.5757 | J134: =D134-F134 -> 0.01127283964 | K134: =G134-E134 -> 9.394483089
A135: 130 | D135: 0.14339434 | E135: 0.31972046 | F135: 0.134517288 | G135: 7.593468908 | H135: 2469574.739 | I135: 138526.5237 | J135: 0.008877052011 | K135: 7.273748448
A136: 131 | D136: 0.1467651307 | E136: 0.6461783417 | F136: 0.1301557685 | G136: 6.248132517 | H136: 3760614.958 | I136: 207963.6854 | J136: 0.01660936222 | K136: 5.601954175
A137: 132 | D137: 0.2678857813 | E137: 0.5276192503 | F137: 0.2586358982 | G137: 7.941736835 | H137: 1597069.679 | I137: 114046.7051 | J137: 0.009249883123 | K137: 7.414117584
A138: 133 | D138: 0.2532163101 | E138: 0.454639203 | F138: 0.2361887223 | G138: 8.155743493 | H138: 2137310.604 | I138: 244199.1568 | J138: 0.01702758779 | K138: 7.70110429
A139: 134 | D139: 0.1402934712 | E139: 0.444742846 | F139: 0.1264478674 | G139: 6.792638583 | H139: 3494043.923 | I139: 205650.3851 | J139: 0.01384560378 | K139: 6.347895737
A140: 135 | D140: 0.2655901333 | E140: 0.3439426934 | F140: 0.25204111 | G140: 8.653955114 | H140: 2444342.67 | I140: 210036.3079 | J140: 0.01354902333 | K140: 8.310012421
A141: 136 | D141: 0.203213573 | E141: 0.4630934557 | F141: 0.187603885 | G141: 7.620205004 | H141: 3503398.367 | I141: 216180.6259 | J141: 0.01560968805 | K141: 7.157111549
A142: 137 | D142: 0.2390701651 | E142: 0.560851853 | F142: 0.2324184028 | G142: 8.493526052 | H142: 3506419.643 | I142: 90726.94689 | J142: 0.0066517623 | K142: 7.932674199
A143: 138 | D143: 0.1495189441 | E143: 0.479124021 | F143: 0.1442471961 | G143: 9.307133077 | H143: 4234521.542 | I143: 70737.76621 | J143: 0.005271748004 | K143: 8.828009056
A144: 139 | D144: 0.1021651025 | E144: 0.7546948943 | F144: 0.09687366101 | G144: 8.473786479 | H144: 3937776.479 | I144: 73460.97466 | J144: 0.005291441536 | K144: 7.719091585
A145: 140 | D145: 0.2642957652 | E145: 0.3812470471 | F145: 0.2580071006 | G145: 7.321081379 | H145: 2181575.524 | I145: 109430.4511 | J145: 0.006288664618 | K145: 6.939834332
A146: 141 | D146: 0.1476182411 | E146: 0.4557368331 | F146: 0.1449788192 | G146: 9.200232443 | H146: 3223463.104 | I146: 34912.45477 | J146: 0.002639421886 | K146: 8.744495609
A147: 142 | D147: 0.2100281085 | E147: 0.5315819157 | F147: 0.203997932 | G147: 8.200454047 | H147: 2193498.295 | I147: 98995.7189 | J147: 0.006030176479 | K147: 7.668872131
A148: 143 | D148: 0.1798602372 | E148: 0.6841379867 | F148: 0.1767324579 | G148: 8.62289037 | H148: 2917423.708 | I148: 52427.98792 | J148: 0.003127779304 | K148: 7.938752383
A149: 144 | D149: 0.1516644381 | E149: 0.7772581922 | F149: 0.1449753483 | G149: 5.922561592 | H149: 3746067.415 | I149: 92066.25043 | J149: 0.006689089763 | K149: 5.1453034
A150: 145 | D150: 0.1637166101 | E150: 0.9123743139 | F150: 0.1361444446 | G150: 6.050463257 | H150: 3441251.191 | I150: 371419.2458 | J150: 0.02757216553 | K150: 5.138088943
A151: 146 | D151: 0.1197669968 | E151: 0.5672844243 | F151: 0.1149329288 | G151: 9.330062936 | H151: 2456519.031 | I151: 67928.93963 | J151: 0.004834068007 | K151: 8.762778512
A152: 147 | D152: 0.1597365298 | E152: 0.3472222622 | F152: 0.1415588141 | G152: 7.767616714 | H152: 3828885.249 | I152: 224930.7598 | J152: 0.01817771573 | K152: 7.420394452
A153: 148 | D153: 0.1844128225 | E153: 0.4524975506 | F153: 0.1755796408 | G153: 8.09222469 | H153: 3369489.002 | I153: 137496.8223 | J153: 0.008833181714 | K153: 7.639727139
A154: 149 | D154: 0.1388852788 | E154: 0.5747814281 | F154: 0.1327753767 | G154: 6.410147531 | H154: 1425123.979 | I154: 85376.34519 | J154: 0.006109902187 | K154: 5.835366103
A155: 150 | D155: 0.170735238 | E155: 0.5743446088 | F155: 0.1576904544 | G155: 8.794271546 | H155: 2269559.037 | I155: 174186.5327 | J155: 0.01304478364 | K155: 8.219926938
A156: 151 | D156: 0.1951840997 | E156: 0.3623788849 | F156: 0.1766688288 | G156: 6.694860178 | H156: 3667721.518 | I156: 251504.8121 | J156: 0.01851527098 | K156: 6.332481293
A157: 152 | D157: 0.1262654871 | E157: 0.3712061533 | F157: 0.1172798922 | G157: 9.733026484 | H157: 3437868.635 | I157: 134439.5617 | J157: 0.008985594865 | K157: 9.36182033
A158: 153 | D158: 0.1526156569 | E158: 0.5939124574 | F158: 0.1419588903 | G158: 7.109163846 | H158: 2959180.8 | I158: 140654.4596 | J158: 0.01065676661 | K158: 6.515251389
A159: 154 | D159: 0.2138828123 | E159: 0.6972599209 | F159: 0.2012837539 | G159: 7.800764719 | H159: 3821390.148 | I159: 182038.567 | J159: 0.0125990584 | K159: 7.103504798
A160: 155 | D160: 0.1663014046 | E160: 0.5983463934 | F160: 0.1522675665 | G160: 9.34286183 | H160: 3094852.232 | I160: 198271.388 | J160: 0.01403383802 | K160: 8.744515437
A161: 156 | D161: 0.2006522901 | E161: 0.3453934195 | F161: 0.1837435544 | G161: 9.559415343 | H161: 2066240.526 | I161: 230833.8559 | J161: 0.01690873575 | K161: 9.214021923
A162: 157 | D162: 0.2005874098 | E162: 0.5470320991 | F162: 0.1961622738 | G162: 8.897872542 | H162: 4140892.947 | I162: 72287.49328 | J162: 0.004425136065 | K162: 8.350840443
A163: 158 | D163: 0.1552194164 | E163: 0.3920204043 | F163: 0.1467190215 | G163: 6.093850979 | H163: 1366708.841 | I163: 110449.9742 | J163: 0.008500394951 | K163: 5.701830575
A164: 159 | D164: 0.2408103298 | E164: 0.6491097281 | F164: 0.2129273903 | G164: 8.404172061 | H164: 3059730.152 | I164: 431145.7465 | J164: 0.0278829395 | K164: 7.755062333
A165: 160 | D165: 0.2443432271 | E165: 0.4904947361 | F165: 0.2400411055 | G165: 9.979406589 | H165: 3587772.67 | I165: 63780.75881 | J165: 0.004302121607 | K165: 9.488911853
A166: 161 | D166: 0.2136802347 | E166: 0.4637447295 | F166: 0.206686548 | G166: 9.159125413 | H166: 3803877.223 | I166: 95585.21253 | J166: 0.006993686713 | K166: 8.695380683
A167: 162 | D167: 0.1826918673 | E167: 0.3128441544 | F167: 0.1652310171 | G167: 8.678861906 | H167: 2787429.126 | I167: 245585.6045 | J167: 0.01746085029 | K167: 8.366017752
A168: 163 | D168: 0.2366434434 | E168: 0.5184626556 | F168: 0.2340001774 | G168: 8.565856229 | H168: 2768041.008 | I168: 41073.58611 | J168: 0.002643265971 | K168: 8.047393573
A169: 164 | D169: 0.1206279994 | E169: 0.4384541358 | F169: 0.1131393162 | G169: 8.956852849 | H169: 4729397.143 | I169: 109750.6814 | J169: 0.007488683163 | K169: 8.518398713
A170: 165 | D170: 0.2076519893 | E170: 0.4884567497 | F170: 0.1899121079 | G170: 5.325739277 | H170: 2484608.379 | I170: 263929.6449 | J170: 0.01773988139 | K170: 4.837282528
A171: 166 | D171: 0.1433533137 | E171: 0.5907403144 | F171: 0.1335182359 | G171: 9.523936183 | H171: 4677874.853 | I171: 120255.2945 | J171: 0.00983507787 | K171: 8.933195869
A172: 167 | D172: 0.1600447562 | E172: 0.3474022812 | F172: 0.1453620892 | G172: 9.629138961 | H172: 4514898.093 | I172: 217178.3282 | J172: 0.01468266703 | K172: 9.281736679
A173: 168 | D173: 0.254715354 | E173: 0.5625623892 | F173: 0.2349813788 | G173: 9.878316196 | H173: 2668022.068 | I173: 266861.758 | J173: 0.01973397525 | K173: 9.315753807
A174: 169 | D174: 0.1630509259 | E174: 0.3531061382 | F174: 0.156297232 | G174: 8.83687581 | H174: 2925791.266 | I174: 91462.16082 | J174: 0.006753693888 | K174: 8.483769672
A175: 170 | D175: 0.1363720132 | E175: 0.4819795209 | F175: 0.1308208297 | G175: 8.186910119 | H175: 4152991.646 | I175: 80352.74913 | J175: 0.005551183497 | K175: 7.704930598
A176: 171 | D176: 0.205639679 | E176: 0.7681625986 | F176: 0.1915541 | G176: 9.495587436 | H176: 2636905.187 | I176: 217044.2692 | J176: 0.01408557897 | K176: 8.727424837
A177: 172 | D177: 0.1637886202 | E177: 0.4565851535 | F177: 0.1387317162 | G177: 9.073729419 | H177: 2974688.77 | I177: 396720.3129 | J177: 0.02505690405 | K177: 8.617144266
A178: 173 | D178: 0.1367523755 | E178: 0.23869395 | F178: 0.1266341982 | G178: 6.399594365 | H178: 3659288.923 | I178: 152765.8738 | J178: 0.01011817738 | K178: 6.160900415
A179: 174 | D179: 0.2346675608 | E179: 0.3139512182 | F179: 0.2298218179 | G179: 8.162187743 | H179: 3090505.959 | I179: 72073.75567 | J179: 0.004845742902 | K179: 7.848236525
A180: 175 | D180: 0.1265045134 | E180: 0.3453147393 | F180: 0.1120629805 | G180: 11.69497903 | H180: 2510148.173 | I180: 169319.4247 | J180: 0.01444153286 | K180: 11.34966429
A181: 176 | D181: 0.1973139145 | E181: 0.3624421557 | F181: 0.1858678748 | G181: 10.54549174 | H181: 4088970.877 | I181: 149421.4533 | J181: 0.01144603973 | K181: 10.18304959
A182: 177 | D182: 0.1282318718 | E182: 0.5671464176 | F182: 0.1147293044 | G182: 13.68506981 | H182: 5996056.942 | I182: 210047.4224 | J182: 0.01350256746 | K182: 13.1179234
A183: 178 | D183: 0.1633727379 | E183: 0.6413762365 | F183: 0.1534412405 | G183: 12.4707712 | H183: 3351694.84 | I183: 131276.4323 | J183: 0.009931497322 | K183: 11.82939496
A184: 179 | D184: 0.1398591246 | E184: 0.3870199505 | F184: 0.1296605006 | G184: 11.2258543 | H184: 2811873.688 | I184: 146932.2846 | J184: 0.01019862395 | K184: 10.83883435
A185: 180 | D185: 0.1513412385 | E185: 0.6614158226 | F185: 0.1457438997 | G185: 11.39921865 | H185: 3062109.226 | I185: 88340.51989 | J185: 0.00559733883 | K185: 10.73780283
A186: 181 | D186: 0.2057593547 | E186: 0.4809895317 | F186: 0.1949298868 | G186: 9.891009145 | H186: 5130248.717 | I186: 152125.8846 | J186: 0.01082946791 | K186: 9.410019614
A187: 182 | D187: 0.0800391125 | E187: 0.508171246 | F187: 0.07432666856 | G187: 10.20276331 | H187: 3799462.007 | I187: 76554.71228 | J187: 0.005712443935 | K187: 9.694592069
A188: 183 | D188: 0.09374939664 | E188: 0.4283583095 | F188: 0.08873193154 | G188: 6.272834013 | H188: 4924840.306 | I188: 69642.51783 | J188: 0.005017465109 | K188: 5.844475704
A189: 184 | D189: 0.1613441525 | E189: 0.4575745572 | F189: 0.1577440949 | G189: 9.961903869 | H189: 2990130.237 | I189: 56782.83067 | J189: 0.003600057639 | K189: 9.504329311
A190: 185 | D190: 0.2447680347 | E190: 0.6499458657 | F190: 0.226858026 | G190: 10.00412718 | H190: 4807974.688 | I190: 244472.8005 | J190: 0.01791000869 | K190: 9.35418131
A191: 186 | D191: 0.08455885223 | E191: 0.4243742659 | F191: 0.08266409406 | G191: 16.03525772 | H191: 2251334.167 | I191: 30130.52521 | J191: 0.001894758177 | K191: 15.61088346
A192: 187 | D192: 0.1404971657 | E192: 0.3691364523 | F192: 0.1354986538 | G192: 6.770033038 | H192: 2980193.563 | I192: 70189.41434 | J192: 0.004998511916 | K192: 6.400896585
A193: 188 | D193: 0.1716713056 | E193: 0.6052385973 | F193: 0.1687187181 | G193: 5.912759689 | H193: 4286009.207 | I193: 39867.19685 | J193: 0.00295258749 | K193: 5.307521092
A194: =A193+1 -> 189 | D194: 0.258894665 | E194: 0.5063263485 | F194: 0.2554197016 | G194: 9.052200251 | H194: 4171025.193 | I194: 47369.88799 | J194: 0.003474963377 | K194: 8.545873903
A195: 190 | D195: 0.1447375188 | E195: 0.5858513064 | F195: 0.1358368212 | G195: 12.66913098 | H195: 4412221.982 | I195: 117626.85 | J195: 0.008900697553 | K195: 12.08327967
A196: 191 | D196: 0.1809461487 | E196: 0.9494702841 | F196: 0.1754170719 | G196: 12.28949937 | H196: 2498416.141 | I196: 74528.09189 | J196: 0.005529076791 | K196: 11.34002909
A197: 192 | D197: 0.09002189715 | E197: 0.4900580519 | F197: 0.08244745163 | G197: 12.47181512 | H197: 2892828.781 | I197: 104573.2423 | J197: 0.007574445521 | K197: 11.98175706
A198: 193 | D198: 0.2847404165 | E198: 0.37150491 | F198: 0.2718708191 | G198: 9.113619775 | H198: 3479729.386 | I198: 158302.0262 | J198: =D198-F198 -> 0.01286959742 | K198: =G198-E198 -> 8.742114865
A199: 194 | D199: 0.1520515726 | E199: 0.5602105677 | F199: 0.1459263129 | G199: 8.383634635 | H199: 4193785.684 | I199: 80645.90607 | J199: 0.006125259725 | K199: 7.823424067
A200: 195 | D200: 0.2385683869 | E200: 0.3833592579 | F200: 0.227075669 | G200: 8.982470265 | H200: 1969991.561 | I200: 184278.9622 | J200: 0.01149271787 | K200: 8.599111007
... 818 more rows
